bitfinex-derivatives/quotes_ETHF0:USTF0_20240915
["timestamp","ask_amount","ask_price","bid_price","bid_amount"]
[1726379031970,0.4066,2420.9,2420.7,16.91391054]
[1726379032171,0.4066,2420.9,2420.8,8.52102274]
[1726379032572,0.4066,2420.9,2420.8,13.13409314]
[1726379032960,0.4066,2420.9,2420.8,12.72115314]
[1726379033576,0.4066,2420.9,2420.8,9.73255536]
[1726379033866,0.4066,2420.9,2420.8,10.43152305]
[1726379034069,0.4066,2420.9,2420.8,12.73072792]
[1726379034460,0.4066,2420.9,2420.8,11.50994113]
[1726379036175,0.4066,2420.9,2420.8,7.45440773]
[1726379036372,0.4066,2420.9,2420.8,9.02660716]
[1726379036570,0.4066,2420.9,2420.8,10.44230981]
[1726379036767,0.4066,2420.9,2420.8,12.73075194]
[1726379037176,0.4066,2420.9,2420.8,13.27524298]
[1726379037368,0.4066,2420.9,2420.8,13.81974184]
[1726379037673,0.4066,2420.9,2420.8,10.44229971]
[1726379038065,0.4066,2420.9,2420.8,9.22147378]
[1726379038266,0.4066,2420.9,2420.8,14.71770503]
[1726379040078,0.4066,2420.9,2420.8,15.13064503]
[1726379040467,0.4066,2420.9,2420.8,15.13066342]
[1726379040668,0.4066,2420.9,2420.8,9.8543218]
[1726379040882,0.4066,2420.9,2420.8,12.84223289]
[1726379041072,0.4066,2420.9,2420.8,15.13067847]
[1726379043079,0.4066,2420.9,2420.8,13.36349253]
[1726379043384,0.4066,2420.9,2420.8,13.65006616]
[1726379043679,0.4066,2420.9,2420.8,15.93855093]
[1726379043979,0.4066,2420.9,2420.8,18.22705226]
[1726379045675,0.4066,2420.9,2420.8,18.63999226]
[1726379046376,0.4066,2420.9,2420.8,13.84672133]
[1726379046583,0.4066,2420.9,2420.8,17.7686065]
[1726379046877,0.4066,2420.9,2420.8,16.01136386]
[1726379047082,0.4066,2420.9,2420.8,16.52313574]
[1726379047379,0.4066,2420.9,2420.8,23.09285393]
[1726379047577,0.4066,2420.9,2420.8,18.92325672]
[1726379047777,0.4066,2420.9,2420.8,16.3512949]
[1726379048084,0.4066,2420.9,2420.8,16.35120669]
[1726379050177,0.4066,2420.9,2420.8,13.36337732]
[1726379050372,0.4066,2420.9,2420.8,11.07504695]
[1726379050682,0.4066,2420.9,2420.8,16.35115855]
[1726379051176,0.4066,2420.9,2420.8,16.35116114]
[1726379051376,0.4066,2420.9,2420.8,16.38820732]
[1726379053680,0.4066,2420.9,2420.8,11.59527281]
[1726379053988,0.4066,2420.9,2420.8,15.29866019]
[1726379054285,0.4066,2420.9,2420.8,16.38746541]
[1726379055992,0.4066,2420.9,2420.8,14.76695401]
[1726379056290,0.4066,2420.9,2420.8,16.38746541]
[1726379057389,0.4066,2420.9,2420.8,14.09946257]
[1726379057583,0.4066,2420.9,2420.8,13.40014791]
[1726379057783,0.4066,2420.9,2420.8,12.52759023]
[1726379058085,0.4066,2420.9,2420.8,16.38766074]
[1726379058484,0.4066,2420.9,2420.8,15.69124878]
[1726379058689,0.4066,2420.9,2420.8,16.38761193]
[1726379060991,0.4066,2420.9,2420.8,16.38757414]
[1726379062084,0.4066,2420.9,2420.8,15.29874133]
[1726379064194,0.4066,2420.9,2420.8,15.29879431]
[1726379065482,0.7818,2421.0,2420.8,15.29879431]
[1726379065687,0.7818,2421.0,2420.9,4.44963343]
[1726379066093,0.7818,2421.0,2420.9,8.96770584]
[1726379067495,0.7818,2421.0,2420.9,8.96771215]
[1726379067889,0.7818,2421.0,2420.9,7.06908328]
[1726379068090,2.94670543,2421.0,2420.9,7.67444953]
[1726379068591,2.94670543,2421.0,2420.9,8.96773508]
[1726379068790,2.94670543,2421.0,2420.9,7.19131501]
[1726379068991,2.94670543,2421.0,2420.9,8.96773713]
[1726379069991,2.94670543,2421.0,2420.9,7.67444814]
[1726379070196,2.94670543,2421.0,2420.9,8.96774032]
[1726379070391,2.94670543,2421.0,2420.9,8.95792297]
[1726379071000,2.94670543,2421.0,2420.9,8.95791882]
[1726379072099,2.94670543,2421.0,2420.9,9.30187049]
[1726379074203,2.94670543,2421.0,2420.9,9.78499957]
[1726379074405,2.94670543,2421.0,2420.9,9.30187049]
[1726379074605,2.94670543,2421.0,2420.9,9.78499946]
[1726379074801,2.94670543,2421.0,2420.9,9.30187049]
[1726379074994,2.94670543,2421.0,2420.9,9.78500827]
[1726379075690,2.94670543,2421.0,2420.9,10.87388314]
[1726379076300,2.94670543,2421.0,2420.9,12.12235062]
[1726379076301,0.7818,2421.0,2420.9,12.12235062]
[1726379076598,0.7818,2421.0,2420.9,10.16239325]
[1726379076800,0.7818,2421.0,2420.9,12.12236144]
[1726379077802,0.7818,2421.0,2420.9,12.12267401]
[1726379078305,0.7818,2421.0,2420.9,12.12268119]
[1726379078606,0.7818,2421.0,2420.9,7.32993997]
[1726379078806,0.7818,2421.0,2420.9,9.83485153]
[1726379079006,0.7818,2421.0,2420.9,11.62594416]
[1726379079196,0.7818,2421.0,2420.9,12.12346989]
[1726379079899,0.7818,2421.0,2420.9,12.66431552]
[1726379080096,2.94993434,2421.0,2420.9,12.66431552]
[1726379080307,0.7818,2421.0,2420.9,12.66431552]
[1726379080500,2.94993566,2421.0,2420.9,12.66431552]
[1726379081500,0.7818,2421.0,2420.9,12.66430885]
[1726379081701,2.94993917,2421.0,2420.9,12.66430885]
[1726379082003,2.94994201,2421.0,2420.9,12.66430885]
[1726379082197,0.7818,2421.0,2420.9,12.66430885]
[1726379082398,2.94994505,2421.0,2420.9,12.66430885]
[1726379082598,0.7818,2421.0,2420.9,12.66430885]
[1726379083004,2.94993984,2421.0,2420.9,12.66430885]
[1726379083404,0.7818,2421.0,2420.9,12.66430885]
[1726379083604,2.94994506,2421.0,2420.9,12.66430885]
[1726379084298,0.7818,2421.0,2420.9,12.66430885]
[1726379084494,2.94996049,2421.0,2420.9,12.66430885]
[1726379084708,0.7818,2421.0,2420.9,12.664322]
[1726379084903,2.94994611,2421.0,2420.9,12.664322]
[1726379085209,2.94994611,2421.0,2420.9,7.87079351]
[1726379085506,2.94994611,2421.0,2420.9,12.66428819]
[1726379088415,2.94994611,2421.0,2420.9,10.1593942]
[1726379088710,2.94994611,2421.0,2420.9,7.3875606]
[1726379088907,2.94994611,2421.0,2420.9,10.86616911]
[1726379089112,2.94994611,2421.0,2420.9,13.85421826]
[1726379089409,2.94994611,2421.0,2420.9,16.14277921]
[1726379091812,2.94994611,2421.0,2420.9,13.15473006]
[1726379092002,2.94994611,2421.0,2420.9,15.34689312]
[1726379092209,2.94994611,2421.0,2420.9,16.1430026]
[1726379092603,0.7818,2421.0,2420.9,14.9530026]
[1726379092804,0.7818,2421.0,2420.9,13.3324912]
[1726379093603,0.7818,2421.0,2420.9,14.9530026]
[1726379094205,0.7818,2421.0,2420.9,14.95302558]
[1726379095320,0.7818,2421.0,2420.9,14.95303963]
[1726379096813,0.7818,2421.0,2420.9,13.33252823]
[1726379097606,0.7818,2421.0,2420.9,14.95303963]
[1726379097912,0.7818,2421.0,2420.9,12.66443112]
[1726379098114,0.7818,2421.0,2420.9,11.04395025]
[1726379098510,0.7818,2421.0,2420.9,12.66446165]
[1726379099014,0.7818,2421.0,2420.9,11.04408183]
[1726379099317,0.7818,2421.0,2420.9,8.05575873]
[1726379099617,0.7818,2421.0,2420.9,8.7554519]
[1726379099810,0.7818,2421.0,2420.9,11.0442143]
[1726379100310,0.7818,2421.0,2420.9,12.6647257]
[1726379100615,0.7818,2421.0,2420.9,11.0442143]
[1726379101414,0.7818,2421.0,2420.9,8.75544325]
[1726379101719,0.7818,2421.0,2420.9,11.0441974]
[1726379101912,0.7818,2421.0,2420.9,12.6647088]
[1726379102215,0.7818,2421.0,2420.9,11.41567171]
[1726379102415,0.7818,2421.0,2420.9,12.66471159]
[1726379102606,2.71094133,2421.1,2420.9,13.85471159]
[1726379102816,2.71094133,2421.1,2421.0,4.78568362]
[1726379103311,2.71094133,2421.1,2421.0,9.42668472]
[1726379104611,2.71094133,2421.1,2421.0,8.01077804]
[1726379104815,2.71094133,2421.1,2421.0,5.72202389]
[1726379105020,2.71094133,2421.1,2421.0,9.42770077]
[1726379108014,2.71094133,2421.1,2421.0,8.01140678]
[1726379108216,2.71094133,2421.1,2421.0,9.42765952]
[1726379108417,2.71094133,2421.1,2421.0,7.13827663]
[1726379108722,3.10184133,2421.2,2421.0,10.49983279]
[1726379108909,3.10184133,2421.2,2421.1,3.68741908]
[1726379109222,3.10184133,2421.2,2421.1,8.82451481]
[1726379109416,3.10184133,2421.2,2421.1,10.61615827]
[1726379109719,3.10184133,2421.2,2421.1,8.53963445]
[1726379111525,3.10184133,2421.2,2421.1,7.12338171]
[1726379111716,3.10184133,2421.2,2421.1,8.53936145]
[1726379111920,3.10184133,2421.2,2421.1,9.62052779]
[1726379113118,3.10184133,2421.2,2421.1,8.53936145]
[1726379115028,3.10184133,2421.2,2421.1,7.2455754]
[1726379115228,3.10184133,2421.2,2421.1,8.53947039]
[1726379117627,3.10184133,2421.2,2421.1,5.82941699]
[1726379117830,3.10184133,2421.2,2421.1,6.70089554]
[1726379118022,3.10184133,2421.2,2421.1,8.53945955]
[1726379118423,3.10184133,2421.2,2421.1,8.53942172]
[1726379118822,3.10184133,2421.2,2421.1,8.5394293]
[1726379119223,3.10184133,2421.2,2421.1,9.33564151]
[1726379119425,3.10184133,2421.2,2421.1,8.53940156]
[1726379121822,3.10184133,2421.2,2421.1,6.32705629]
[1726379122030,3.10184133,2421.2,2421.1,7.09835769]
[1726379122232,3.10184133,2421.2,2421.1,10.3529304]
[1726379122920,0.3909,2421.2,2421.1,11.84698674]
[1726379123126,2.55803779,2421.2,2421.1,12.84216304]
[1726379123930,2.55803779,2421.2,2421.1,12.44466304]
[1726379124527,2.55803779,2421.2,2421.1,11.02857437]
[1726379124729,2.55803779,2421.2,2421.1,12.44453192]
[1726379124932,0.3909,2421.2,2421.1,10.84164192]
[1726379125229,3.10184133,2421.2,2421.1,7.34934173]
[1726379125428,3.10184133,2421.2,2421.1,7.47159363]
[1726379125624,3.10184133,2421.2,2421.1,8.76542472]
[1726379128524,3.10184133,2421.2,2421.1,7.34933359]
[1726379128727,3.10184133,2421.2,2421.1,7.34941179]
[1726379128935,3.10184133,2421.2,2421.1,6.0555807]
[1726379129131,3.10184133,2421.2,2421.1,6.47798404]
[1726379129334,3.10184133,2421.2,2421.1,7.34946969]
[1726379132732,3.10184133,2421.2,2421.1,7.34947856]
[1726379133042,3.10184133,2421.2,2421.1,7.34947202]
[1726379135847,3.10184133,2421.2,2421.1,7.34959326]
[1726379137238,3.10184133,2421.2,2421.1,6.47803262]
[1726379137439,3.10184133,2421.2,2421.1,7.34960066]
[1726379138236,3.10184133,2421.2,2421.1,6.47803262]
[1726379138843,3.10184133,2421.2,2421.1,7.34960243]
[1726379139050,3.10184133,2421.2,2421.1,7.34959887]
[1726379139644,3.51471133,2421.2,2421.1,6.55335873]
[1726379139846,0.80377,2421.2,2421.1,4.63941699]
[1726379140042,0.80377,2421.2,2421.1,6.47817142]
[1726379140237,0.80377,2421.2,2421.1,1.83875443]
[1726379140439,0.80377,2421.2,2421.1,6.49810351]
[1726379142852,0.80377,2421.2,2421.1,6.49811082]
[1726379145849,4.93417,2421.2,2421.1,6.49811082]
[1726379146050,4.93417,2421.2,2421.1,1.83876174]
[1726379149352,4.93417,2421.2,2421.1,1.29402729]
[1726379149553,4.93417,2421.2,2421.1,0.54474412]
[1726379149749,4.93417,2421.2,2421.1,1.29403406]
[1726379150055,4.93417,2421.2,2421.1,1.83877846]
[1726379150451,4.93417,2421.2,2421.1,3.1328132]
[1726379150645,4.93417,2421.2,2421.1,3.13281683]
[1726379152749,4.93417,2421.2,2421.1,2.5880688]
[1726379152943,4.93417,2421.2,2421.1,1.83877208]
[1726379153345,4.93417,2421.2,2421.1,3.13279791]
[1726379153947,0.80377,2421.2,2421.1,3.13279791]
[1726379155649,3.51274313,2421.2,2421.1,4.00434656]
[1726379155845,3.51274313,2421.2,2421.1,4.00428474]
[1726379156755,0.80377,2421.2,2421.1,3.13273609]
[1726379158656,0.80377,2421.2,2421.1,1.83870203]
[1726379160155,0.80377,2421.2,2421.1,2.71030935]
[1726379160346,0.3909,2421.2,2421.1,2.71030935]
[1726379160546,3.09993491,2421.2,2421.1,1.1905]
[1726379160754,0.80377,2421.2,2421.1,2.06210553]
[1726379160956,0.80377,2421.2,2421.1,1.73525346]
[1726379161157,0.80377,2421.2,2421.1,3.02931378]
[1726379162052,0.80377,2421.2,2421.1,3.90091639]
[1726379162568,0.80377,2421.2,2421.1,3.02931378]
[1726379162861,0.80377,2421.2,2421.1,3.90092334]
[1726379165369,0.3909,2421.2,2421.1,3.90092334]
[1726379165870,3.10007454,2421.2,2421.1,3.90092334]
[1726379166066,0.3909,2421.2,2421.1,3.90092334]
[1726379166367,0.3909,2421.2,2421.1,1.1905]
[1726379166569,0.3909,2421.2,2421.1,2.60684202]
[1726379166869,0.3909,2421.2,2421.1,3.90089159]
[1726379167551,3.10016084,2421.2,2421.1,3.90089159]
[1726379169761,0.3909,2421.2,2421.1,3.49979159]
[1726379170156,0.80377,2421.2,2421.1,2.71039159]
[1726379170377,0.80377,2421.2,2421.1,2.71039837]
[1726379173558,0.80377,2421.2,2421.1,0.87160146]
[1726379173754,0.80377,2421.2,2421.1,1.41635237]
[1726379174151,0.80377,2421.2,2421.1,2.71041061]
[1726379176764,0.3909,2421.2,2421.1,2.71041061]
[1726379176965,0.3909,2421.2,2421.1,3.08801061]
[1726379177166,0.3909,2421.2,2421.1,3.49370141]
[1726379177862,0.3909,2421.2,2421.1,1.28131471]
[1726379178063,0.3909,2421.2,2421.1,2.19964769]
[1726379178264,12.12417,2421.2,2421.1,1.83842766]
[1726379178561,8.9639319,2421.2,2421.1,1.04224678]
[1726379179263,9.3768019,2421.2,2421.1,1.04224678]
[1726379179467,15.3768019,2421.2,2421.1,0.49761305]
[1726379180459,9.3768019,2421.2,2421.1,0.49761305]
[1726379180661,9.3768019,2421.2,2420.8,0.3912]
[1726379180858,2.70944496,2420.9,2420.8,0.3912]
[1726379181063,2.70944496,2420.9,2420.8,1.80767598]
[1726379181266,2.70944496,2421.0,2420.8,1.80767598]
[1726379181462,2.70916423,2421.0,2420.9,1.34117278]
[1726379181759,2.70916423,2421.0,2420.9,2.63531491]
[1726379181964,6.83956423,2421.0,2420.9,2.63531491]
[1726379182166,4.1304,2421.0,2420.9,2.63531491]
[1726379182367,6.83957406,2421.0,2420.9,2.63531491]
[1726379183062,4.1304,2421.0,2420.9,2.63531491]
[1726379183268,4.1304,2421.0,2420.9,1.83891975]
[1726379183576,6.5309,2421.0,2420.9,1.83891975]
[1726379184272,6.5309,2421.0,2420.9,1.2941213]
[1726379184466,6.5309,2421.0,2420.9,1.83903177]
[1726379186163,6.5309,2421.0,2420.9,1.2941713]
[1726379187368,6.5309,2421.0,2420.9,0.44759349]
[1726379187369,13.56316,2421.0,2420.9,0.44759349]
[1726379187677,0.41296,2420.7,2420.5,0.61107806]
[1726379187863,0.41296,2420.7,2420.5,0.51507806]
[1726379187864,4.29037709,2420.6,2420.5,0.51507806]
[1726379188065,5.7135,2420.6,2420.5,0.51507806]
[1726379188264,8.83449475,2420.6,2420.5,1.00563597]
[1726379188471,8.83449475,2420.6,2420.5,0.51507806]
[1726379188870,8.83449475,2420.6,2420.4,0.3993]
[1726379189076,2.1654696,2420.5,2420.4,0.3993]
[1726379189272,2.16476666,2420.5,2420.4,0.3993]
[1726379192375,5.20307,2420.6,2420.4,0.3993]
[1726379192376,7.36783666,2420.6,2420.4,0.3993]
[1726379194372,1.62184211,2420.5,2420.4,0.3993]
[1726379194575,7.36783666,2420.6,2420.2,2.52043]
[1726379194870,7.36783666,2420.6,2420.2,0.8099]
[1726379194871,1.08125202,2420.3,2420.2,0.8099]
[1726379195176,1.08125202,2420.3,2420.2,0.4134]
[1726379195377,1.46785202,2420.3,2420.2,0.4134]
[1726379196575,1.46785202,2420.3,2420.2,0.82644]
[1726379196779,1.46785202,2420.3,2420.2,0.4134]
[1726379197779,0.3866,2420.3,2420.2,0.4134]
[1726379201084,0.7939,2420.3,2420.2,0.4134]
[1726379201581,1.87515202,2420.3,2420.2,0.4134]
[1726379201790,3.06515202,2420.3,2420.2,0.4134]
[1726379202482,3.06515202,2420.3,2420.0,1.28307]
[1726379202685,3.06515202,2420.3,2420.0,0.87]
[1726379202686,3.47818202,2420.3,2420.0,0.87]
[1726379202884,3.47818202,2420.3,2420.0,0.4925]
[1726379202885,1.08125202,2420.2,2420.0,0.4925]
[1726379203078,1.08125202,2420.2,2420.0,0.3965]
[1726379203279,2.27125202,2420.2,2420.0,0.3965]
[1726379203572,2.27125202,2420.2,2419.9,0.80108]
[1726379203974,2.27125202,2420.2,2420.0,4.42052939]
[1726379206487,2.68429202,2420.2,2420.0,4.42052939]
[1726379206688,2.27125202,2420.2,2420.0,4.42052939]
[1726379207897,1.19,2420.2,2420.0,4.42052939]
[1726379213905,1.19,2420.2,2420.0,4.83358939]
[1726379214204,1.87515202,2420.3,2420.1,3.9919]
[1726379214505,1.87515202,2420.3,2420.2,0.4102]
[1726379215896,2.28817202,2420.3,2420.2,0.4102]
[1726379216990,1.20692,2420.3,2420.2,0.4102]
[1726379217195,2.28673679,2420.3,2420.2,0.4102]
[1726379217396,2.82879803,2420.3,2420.2,0.4102]
[1726379217603,1.20692,2420.3,2420.2,0.4102]
[1726379218304,2.82879803,2420.3,2420.2,0.4102]
[1726379219399,1.20692,2420.3,2420.2,0.4102]
[1726379220805,2.82713085,2420.3,2420.2,0.4102]
[1726379225510,1.20692,2420.3,2420.2,0.4102]
[1726379230515,0.7939,2420.3,2420.2,0.4102]
[1726379231117,2.95818406,2420.3,2420.2,0.4102]
[1726379231313,1.20692,2420.3,2420.2,0.4102]
[1726379232226,3.37173355,2420.3,2420.2,0.4102]
[1726379232518,1.20692,2420.3,2420.2,0.4102]
[1726379232722,3.90727142,2420.3,2420.2,0.4102]
[1726379232920,3.90727142,2420.3,2420.2,0.90100258]
[1726379233118,3.90727142,2420.3,2420.2,0.4102]
[1726379233318,3.90727142,2420.3,2420.2,1.44642649]
[1726379233518,3.49425142,2420.3,2420.2,1.44642649]
[1726379233925,3.49425142,2420.3,2420.2,0.9556044]
[1726379234123,3.49425142,2420.3,2420.2,1.44642827]
[1726379235425,3.49425142,2420.3,2420.2,1.44658237]
[1726379238027,3.49425142,2420.3,2420.2,0.4102]
[1726379238215,3.49425142,2420.3,2420.2,1.44687056]
[1726379238526,3.49425142,2420.3,2420.2,1.44687255]
[1726379238918,3.49425142,2420.3,2420.2,1.44689842]
[1726379241431,0.7939,2420.3,2420.2,1.44689842]
[1726379242321,0.7939,2420.3,2420.2,0.90124548]
[1726379242528,0.7939,2420.3,2420.2,0.95599144]
[1726379242727,0.7939,2420.3,2420.2,0.4102]
[1726379243030,0.7939,2420.3,2420.2,1.44725522]
[1726379243231,3.50329518,2420.3,2420.2,1.93851946]
[1726379243416,0.7939,2420.3,2420.2,1.93851946]
[1726379243622,0.7939,2420.3,2420.2,2.42979191]
[1726379244221,1.20692,2420.3,2420.2,2.42979191]
[1726379244422,1.20692,2420.3,2420.2,2.01959191]
[1726379245732,0.7939,2420.3,2420.2,2.01959191]
[1726379246536,0.7939,2420.3,2420.2,3.67917387]
[1726379247029,3.50421318,2420.3,2420.2,3.67917387]
[1726379247226,0.7939,2420.3,2420.2,4.05457387]
[1726379248221,0.096,2420.4,2420.2,4.05457387]
[1726379248522,2.71070735,2420.4,2420.3,15.63721724]
[1726379248729,2.71070735,2420.4,2420.3,17.2115792]
[1726379248922,3.3364217,2420.7,2420.4,0.41301]
[1726379248923,1.62630159,2420.5,2420.4,0.41301]
[1726379249131,1.62630159,2420.5,2420.4,13.69392555]
[1726379249321,1.08307718,2420.5,2420.4,21.64040262]
[1726379249525,1.08307718,2420.5,2420.4,20.63512321]
[1726379249730,1.08307718,2420.5,2420.4,19.99038019]
[1726379249933,1.08307718,2420.5,2420.4,20.11934811]
[1726379250122,1.08307718,2420.5,2420.4,18.70006354]
[1726379250524,1.08307718,2420.5,2420.4,17.07744463]
[1726379250835,1.08307718,2420.5,2420.4,18.70006354]
[1726379251036,1.08307718,2420.5,2420.4,18.15877323]
[1726379251438,1.08307718,2420.5,2420.4,18.14928698]
[1726379251734,1.62630159,2420.7,2420.5,0.41299]
[1726379251735,1.08307718,2420.6,2420.5,0.41299]
[1726379251930,1.62630159,2420.7,2420.5,3.50090588]
[1726379252132,1.62630159,2420.7,2420.6,3.08531588]
[1726379252325,1.62630159,2420.7,2420.6,1.42645031]
[1726379253540,1.62630159,2420.7,2420.6,0.3896]
[1726379253728,1.62630159,2420.7,2420.6,0.93511771]
[1726379253935,1.62630159,2420.7,2420.6,1.42607536]
[1726379255838,1.08135019,2420.7,2420.6,1.42607536]
[1726379256132,2.81630159,2420.7,2420.6,1.42607536]
[1726379256331,2.81630159,2420.7,2420.6,0.3896]
[1726379256526,2.81630159,2420.7,2420.5,0.3922]
[1726379256726,2.40490159,2420.6,2420.4,1.2153]
[1726379256932,1.08129269,2420.5,2420.4,1.2153]
[1726379257128,1.08129269,2420.5,2420.4,1.76089676]
[1726379257328,1.85989269,2420.6,2420.4,11.06129606]
[1726379257529,0.7786,2420.6,2420.5,1.03661371]
[1726379257730,0.7786,2420.6,2420.5,1.03653587]
[1726379257731,1.85982246,2420.6,2420.5,1.03653587]
[1726379258038,2.40490159,2420.6,2420.5,1.03653587]
[1726379258239,0.7786,2420.6,2420.5,1.03652111]
[1726379258547,0.7786,2420.6,2420.5,1.03651817]
[1726379258548,1.85980231,2420.6,2420.5,1.03651817]
[1726379258839,0.7786,2420.6,2420.4,1.2153]
[1726379259040,1.08118416,2420.5,2420.4,1.2153]
[1726379259243,1.85978416,2420.6,2420.4,2.25168208]
[1726379259439,1.08118416,2420.5,2420.4,5.97577244]
[1726379259635,1.85978416,2420.6,2420.4,7.01214904]
[1726379259942,1.85978416,2420.6,2420.4,5.97577244]
[1726379260345,1.85978416,2420.6,2420.5,0.49088652]
[1726379260537,1.85978416,2420.6,2420.4,5.97577244]
[1726379267241,1.85978416,2420.6,2420.5,0.41299]
[1726379267432,1.47238416,2420.6,2420.5,0.41299]
[1726379267633,1.47238416,2420.6,2420.5,1.44883554]
[1726379267839,0.3912,2420.6,2420.5,1.44883554]
[1726379269043,1.47238416,2420.6,2420.5,1.44883554]
[1726379269944,1.08118416,2420.7,2420.5,1.44883554]
[1726379270144,1.08118416,2420.7,2420.6,0.3795]
[1726379273147,1.08095817,2420.7,2420.6,0.3795]
[1726379273343,2.03820159,2420.8,2420.6,0.3795]
[1726379273645,1.08096298,2420.7,2420.6,0.3795]
[1726379274735,1.08096298,2420.7,2420.5,0.41299]
[1726379275448,1.08096298,2420.7,2420.6,5.09709747]
[1726379275748,1.08096298,2420.7,2420.5,5.09710747]
[1726379276141,1.08096298,2420.7,2420.6,4.68412747]
[1726379276340,1.08096298,2420.7,2420.5,0.41298]
[1726379276546,1.08096298,2420.7,2420.6,0.41297]
[1726379276745,1.08096298,2420.7,2420.6,4.74361645]
[1726379276949,1.08096298,2420.7,2420.6,0.41297]
[1726379277452,1.08096298,2420.7,2420.6,4.96596257]
[1726379278950,1.08096298,2420.7,2420.6,4.55299257]
[1726379279253,1.08096298,2420.7,2420.5,0.41298]
[1726379279254,1.08096298,2420.7,2420.5,5.08065641]
[1726379279546,1.08096298,2420.7,2420.5,0.41298]
[1726379279952,1.08096298,2420.7,2420.6,4.66767641]
[1726379280354,1.08096298,2420.7,2420.6,5.08064641]
[1726379280743,1.08096298,2420.7,2420.6,0.41297]
[1726379280953,1.08096298,2420.7,2420.6,5.16639224]
[1726379282966,1.08096298,2420.7,2420.6,5.65707024]
[1726379283265,1.08096298,2420.7,2420.6,5.16639224]
[1726379283659,1.08096298,2420.7,2420.6,6.20230983]
[1726379283855,1.08096298,2420.7,2420.6,5.65708202]
[1726379284063,1.08096298,2420.7,2420.6,6.20230053]
[1726379284265,1.08096298,2420.7,2420.6,5.65708202]
[1726379284468,2.03820159,2420.8,2420.6,5.78933397]
[1726379284762,1.62630159,2420.7,2420.5,3.2078]
[1726379284972,1.08142673,2420.6,2420.5,3.2078]
[1726379285270,1.08142673,2420.6,2420.5,4.24379089]
[1726379285766,1.62630159,2420.7,2420.5,4.24379089]
[1726379285968,1.0815468,2420.6,2420.5,3.2078]
[1726379286163,1.62630159,2420.7,2420.5,4.24380827]
[1726379286363,1.62630159,2420.6,2420.5,3.2078]
[1726379286661,1.62630159,2420.6,2420.5,4.243806]
[1726379286865,1.62630159,2420.6,2420.5,3.6985288]
[1726379287061,1.62630159,2420.6,2420.5,1.03600818]
[1726379288682,1.62630159,2420.6,2420.5,1.03603464]
[1726379290382,1.62630159,2420.6,2420.5,0.49074461]
[1726379290576,1.62630159,2420.6,2420.5,0.54531534]
[1726379290877,1.62630159,2420.6,2420.5,1.03607923]
[1726379291182,1.62630159,2420.6,2420.5,1.52684714]
[1726379291377,2.16840212,2420.7,2420.5,3.18455343]
[1726379291577,2.16840212,2420.7,2420.6,1.0360826]
[1726379292380,4.68900735,2420.8,2420.6,1.0360826]
[1726379292685,4.68900735,2420.8,2420.5,0.49076454]
[1726379292686,4.68900735,2420.8,2420.7,1.0360826]
[1726379293366,1.9783,2420.8,2420.7,1.0360826]
[1726379293775,1.9783,2420.8,2420.5,0.90375454]
[1726379294080,2.1666091,2420.6,2420.5,0.90375454]
[1726379294270,2.70826138,2420.7,2420.5,3.40287896]
[1726379294476,2.70826138,2420.7,2420.6,1.90855949]
[1726379294879,2.70826138,2420.7,2420.6,3.18453234]
[1726379295181,2.70826138,2420.7,2420.6,3.18455125]
[1726379297383,2.70826138,2420.7,2420.6,0.49076367]
[1726379297678,2.70826138,2420.7,2420.6,3.18442217]
[1726379298282,2.70826138,2420.7,2420.6,1.7666851]
[1726379298680,2.70826138,2420.7,2420.6,0.98150268]
[1726379300381,2.70826138,2420.7,2420.6,0.49076367]
[1726379302086,2.70826138,2420.7,2420.6,1.90854281]
[1726379302580,2.70826138,2420.7,2420.6,1.36324314]
[1726379303379,2.70826138,2420.7,2420.5,1.8956186]
[1726379304076,2.16782302,2420.6,2420.5,1.8956186]
[1726379304283,2.16782302,2420.6,2420.5,3.13906482]
[1726379304584,2.16782302,2420.6,2420.5,2.72607482]
[1726379306281,2.16782302,2420.6,2420.5,7.36832808]
[1726379307376,2.16782302,2420.6,2420.5,9.87693686]
[1726379307688,2.16782302,2420.6,2420.5,9.87707264]
[1726379307877,2.16782302,2420.6,2420.5,12.13475043]
[1726379308077,2.16782302,2420.6,2420.5,11.05342183]
[1726379308280,2.16782302,2420.6,2420.5,12.13569321]
[1726379308784,2.16782302,2420.6,2420.5,11.05342183]
[1726379309878,2.16782302,2420.6,2420.5,11.53735063]
[1726379310278,2.16782302,2420.6,2420.5,11.95034063]
[1726379310474,2.16782302,2420.6,2420.5,13.57295954]
[1726379310978,2.16782302,2420.6,2420.5,13.08873967]
[1726379311175,2.16782302,2420.6,2420.5,11.31494951]
[1726379311375,2.16782302,2420.6,2420.5,11.12545556]
[1726379311574,2.16782302,2420.6,2420.5,12.7873278]
[1726379311875,2.55572302,2420.6,2420.5,11.31509415]
[1726379312081,2.55572302,2420.6,2420.5,13.57262258]
[1726379314486,2.55572302,2420.6,2420.5,8.32274417]
[1726379314689,2.55572302,2420.6,2420.5,10.831196]
[1726379314982,2.55572302,2420.6,2420.5,16.08109762]
[1726379315190,2.55572302,2420.6,2420.5,18.33863513]
[1726379316297,2.55572302,2420.6,2420.5,17.92564513]
[1726379317991,2.55572302,2420.6,2420.5,15.66816246]
[1726379318195,2.55572302,2420.6,2420.5,17.9257393]
[1726379318589,2.55572302,2420.6,2420.5,18.3387293]
[1726379320188,2.55572302,2420.6,2420.5,17.9257393]
[1726379321394,2.55572302,2420.6,2420.5,15.66819522]
[1726379321599,2.55572302,2420.6,2420.5,19.34367174]
[1726379321788,2.55572302,2420.6,2420.5,22.69193767]
[1726379322689,2.55572302,2420.6,2420.5,21.06931876]
[1726379322886,2.55572302,2420.6,2420.5,22.69193767]
[1726379323687,2.55572302,2420.6,2420.5,13.15982466]
[1726379324996,2.55572302,2420.6,2420.5,10.90225486]
[1726379325290,2.55572302,2420.6,2420.5,13.15987738]
[1726379326481,2.55572302,2420.6,2420.5,13.1599517]
[1726379327092,2.55572302,2420.6,2420.5,12.7586517]
[1726379327294,3.09616138,2420.6,2420.5,3.77633337]
[1726379327600,3.09616138,2420.6,2420.5,2.69392478]
[1726379328094,3.09817336,2420.6,2420.5,2.69392478]
[1726379328295,0.3879,2420.6,2420.5,2.69392478]
[1726379328886,3.09794334,2420.6,2420.5,2.69392478]
[1726379330095,3.09783957,2420.6,2420.5,2.69392478]
[1726379330297,0.3879,2420.6,2420.5,2.69392478]
[1726379330492,3.09768037,2420.6,2420.5,2.69392478]
[1726379331792,3.09768037,2420.6,2420.5,2.69432603]
[1726379333292,3.09768037,2420.6,2420.5,1.82153925]
[1726379333801,3.09768037,2420.6,2420.5,2.69433782]
[1726379334299,3.09768037,2420.6,2420.5,1.82153925]
[1726379335198,3.09768037,2420.6,2420.5,1.27604751]
[1726379335394,3.09768037,2420.6,2420.4,0.3849]